[Event "FIDE WYCC Girls U14 2023"]
[Site "Montesilvano"]
[Date "2023.11.22"]
[Round "9.27"]
[White "Skramstad, Oda Kofoed"]
[Black "Field, Lila Quinn"]
[Result "1-0"]
[ECO "D55"]
[WhiteElo "1801"]
[BlackElo "1616"]
[Annotator "NA RC"]
[PlyCount "111"]
[EventDate "2023.11.13"]
[EventType "swiss"]
[EventCountry "ITA"]
[SourceTitle "playchess.com"]
[Source "ChessBase"]
[SourceQuality "1"]
[TimeControl "40/5400+30:1800+30"]

1. d4 {[%emt 0:01:21]} d5 {[%emt 0:00:08]} 2. c4 {[%emt 0:00:08]} e6 {[%emt 0:00:08]} 3. Nc3 {[%emt 0:01:01]} Nf6 {[%emt 0:00:18]} 4. Bg5 {[%emt 0:00:28]} Be7 {[%emt 0:00:35]} 5. e3 {[%emt 0:00:28]} O-O {[%emt 0:01:20]} 6. Nf3 {[%emt 0:00:22]} a6 {[%emt 0:01:30]} 7. Rc1 {[%emt 0:02:29]} dxc4 {[%emt 0:11:50]} 8. Bxc4 {[%emt 0:00:42]} Nbd7 {[%emt 0:08:40]} 9. O-O {[%emt 0:02:35]} b5 {[%emt 0:02:02]} 10. Bd3 {[%emt 0:02:52]} Bb7 {[%emt 0:02:02]} 11. Qe2 {[%emt 0:05:25]} c5 {[%emt 0:01:27]} 12. a3 {[%emt 0:07:18]} Re8 {[%emt 0:05:48]} 13. Rfd1 {[%emt 0:01:13]} c4 {[%emt 0:02:21]} 14. Bb1 {[%emt 0:02:40]} h6 {[%emt 0:02:14]} 15. Bh4 {[%emt 0:01:53]} Qb6 {[%emt 0:05:52]} 16. e4 {[%emt 0:05:48]} Nf8 {[%emt 0:09:13]} 17. e5 {[%emt 0:07:25]} Nd5 {[%emt 0:01:54]} 18. Bxe7 {[%emt 0:00:28]} Nxe7 {[%emt 0:01:12]} 19. Ne4 {[%emt 0:01:25]} Nd5 {[%emt 0:06:48]} 20. Nd6 {[%emt 0:05:29]} Red8 {[%emt 0:09:49]} 21. Nxb7 {[%emt 0:02:14]} Qxb7 {[%emt 0:00:08]} 22. g3 {[%emt 0:00:56]} Qd7 {[%emt 0:00:59]} 23. Nd2 {[%emt 0:01:55]} Qe7 {[%emt 0:06:05]} 24. Ne4 {[%emt 0:02:19]} Ng6 {[%emt 0:03:11]} 25. Qg4 {[%emt 0:02:51]} Nf8 {[%emt 0:00:58]} 26. Qf3 {[%emt 0:05:01]} f5 {[%emt 0:02:11]} 27. exf6 {[%emt 0:01:00]} Nxf6 {[%emt 0:00:13]} 28. Nxf6+ {[%emt 0:00:30]} Qxf6 {[%emt 0:00:10]} 29. Qe4 {[%emt 0:00:37]} Rd5 {[%emt 0:00:42]} 30. Rd2 {[%emt 0:09:32]} Rad8 {[%emt 0:00:18]} 31. Rcd1 {[%emt 0:01:09]} Qf5 {[%emt 0:04:47]} 32. Qe3 {[%emt 0:02:26]} Qf7 {[%emt 0:00:27]} 33. Be4 {[%emt 0:01:14]} R5d6 {[%emt 0:00:50]} 34. Bg2 {[%emt 0:01:14]} Ng6 {[%emt 0:01:04]} 35. f4 {[%emt 0:02:36]} Ne7 {[%emt 0:02:00]} 36. Qe5 {[%emt 0:00:52]} Qf6 {[%emt 0:02:38]} 37. Qe4 {[%emt 0:02:38]} Nd5 {[%emt 0:01:39]} 38. Qf3 {[%emt 0:04:06]} Ne7 {[%emt 0:01:13]} 39. Qe4 {[%emt 0:02:56]} Nd5 {[%emt 0:01:47]} 40. Qe5 {[%emt 0:00:00]} R6d7 {[%emt 0:00:00]} 41. Bh3 {[%emt 0:06:36]} Qxe5 {[%emt 0:04:43]} 42. dxe5 {[%emt 0:00:54]} Nxf4 {[%emt 0:07:02]} 43. Bxe6+ {[%emt 0:04:51]} Nxe6 {[%emt 0:02:08]} 44. Rxd7 {[%emt 0:02:16]} Rxd7 {[%emt 0:00:08]} 45. Rxd7 {[%emt 0:00:09]} Nc5 {[%emt 0:00:09]} 46. Rd6 {[%emt 0:01:08]} Na4 {[%emt 0:02:58]} 47. Rxa6 {[%emt 0:02:37]} Nxb2 {[%emt 0:00:15]} 48. Rb6 {[%emt 0:00:46]} c3 {[%emt 0:03:49]} 49. Rxb5 {[%emt 0:01:03]} Nd3 {[%emt 0:00:11]} 50. Rb8+ {[%emt 0:00:25]} Kf7 {[%emt 0:00:08]} 51. Rc8 {[%emt 0:00:20]} c2 {[%emt 0:03:56]} 52. Rxc2 {[%emt 0:00:13]} Nxe5 {[%emt 0:00:08]} 53. a4 {[%emt 0:01:02]} Nd3 {[%emt 0:00:46]} 54. a5 {[%emt 0:00:32]} Nb4 {[%emt 0:00:17]} 55. Rc7+ {[%emt 0:00:32]} Ke8 {[%emt 0:00:32]} 56. Rxg7 {[%emt 0:00:21]} 1-0

[Event "FIDE WYCC Girls U14 2023"]
[Site "Montesilvano"]
[Date "2023.11.22"]
[Round "9.28"]
[White "Maral Altankhuyag"]
[Black "Montano Vicente, Guadalupe"]
[Result "0-1"]
[ECO "D70"]
[WhiteElo "1398"]
[BlackElo "1794"]
[Annotator "NA RC"]
[PlyCount "106"]
[EventDate "2023.11.13"]
[EventType "swiss"]
[EventCountry "ITA"]
[SourceTitle "playchess.com"]
[Source "ChessBase"]
[SourceQuality "1"]
[TimeControl "40/5400+30:1800+30"]

1. d4 {[%emt 0:00:14]} Nf6 {[%emt 0:00:04]} 2. c4 {[%emt 0:00:11]} g6 {[%emt 0:00:04]} 3. Nf3 {[%emt 0:00:04]} Bg7 {[%emt 0:00:12]} 4. g3 {[%emt 0:00:25]} O-O {[%emt 0:01:00]} 5. Bg2 {[%emt 0:00:32]} d6 {[%emt 0:00:16]} 6. O-O {[%emt 0:00:16]} c6 {[%emt 0:00:05]} 7. Nc3 {[%emt 0:00:49]} Qb6 {[%emt 0:00:10]} 8. Qc2 {[%emt 0:07:18]} d5 {[%emt 0:01:26]} 9. e4 {[%emt 0:02:41]} dxe4 {[%emt 0:05:02]} 10. Nxe4 {[%emt 0:00:35]} Bf5 {[%emt 0:01:29]} 11. Nxf6+ {[%emt 0:01:12]} Bxf6 {[%emt 0:00:54]} 12. Qe2 {[%emt 0:05:58]} Na6 {[%emt 0:18:56]} 13. c5 {[%emt 0:15:31]} Qd8 {[%emt 0:03:53]} 14. Rd1 {[%emt 0:01:47]} Nb4 {[%emt 0:04:02]} 15. Bh6 {[%emt 0:02:18]} Re8 {[%emt 0:01:37]} 16. Qc4 {[%emt 0:03:21]} Nd5 {[%emt 0:01:50]} 17. Ne5 {[%emt 0:03:39]} Be6 {[%emt 0:01:54]} 18. Qe2 {[%emt 0:01:57]} Rc8 {[%emt 0:08:54]} 19. Ng4 {[%emt 0:03:53]} Bxg4 {[%emt 0:03:23]} 20. Qxg4 {[%emt 0:00:11]} e6 {[%emt 0:02:15]} 21. h4 {[%emt 0:03:15]} Bh8 {[%emt 0:02:57]} 22. Rd3 {[%emt 0:04:13]} b6 {[%emt 0:02:40]} 23. Bg5 {[%emt 0:15:15]} f6 {[%emt 0:10:36]} 24. Bd2 {[%emt 0:01:32]} f5 {[%emt 0:08:18]} 25. Qe2 {[%emt 0:02:05]} bxc5 {[%emt 0:02:47]} 26. dxc5 {[%emt 0:00:11]} Qe7 {[%emt 0:04:05]} 27. Bxd5 {[%emt 0:05:17]} exd5 {[%emt 0:03:28]} 28. Re3 {[%emt 0:00:18]} Qd7 {[%emt 0:01:57]} 29. Re1 {[%emt 0:01:06]} Kf7 {[%emt 0:02:06]} 30. b4 {[%emt 0:02:29]} Bd4 {[%emt 0:06:53]} 31. Rxe8 {[%emt 0:02:33]} Rxe8 {[%emt 0:00:09]} 32. Qa6 {[%emt 0:00:44]} Re4 {[%emt 0:01:50]} 33. a4 {[%emt 0:01:44]} Qc7 {[%emt 0:00:26]} 34. Rxe4 {[%emt 0:01:29]} Qxg3+ {[%emt 0:00:50]} 35. Kh1 {[%emt 0:00:49]} Qf3+ {[%emt 0:00:28]} 36. Kh2 {[%emt 0:00:25]} Qxf2+ {[%emt 0:00:33]} 37. Kh3 {[%emt 0:00:07]} fxe4 {[%emt 0:00:40]} 38. Qb7+ {[%emt 0:01:22]} Kg8 {[%emt 0:00:20]} 39. Qc8+ {[%emt 0:03:16]} Qf8 {[%emt 0:00:22]} 40. Qxf8+ {[%emt 0:00:00]} Kxf8 {[%emt 0:00:00]} 41. Kg4 {[%emt 0:00:52]} h5+ {[%emt 0:07:15]} 42. Kg5 {[%emt 0:01:51]} Kf7 {[%emt 0:02:16]} 43. b5 {[%emt 0:02:05]} e3 {[%emt 0:15:03]} 44. Ba5 {[%emt 0:01:59]} Be5 {[%emt 0:01:10]} 45. b6 {[%emt 0:02:05]} a6 {[%emt 0:01:38]} 46. b7 {[%emt 0:01:02]} d4 {[%emt 0:00:27]} 47. Bb6 {[%emt 0:00:53]} d3 {[%emt 0:00:46]} 48. Ba5 {[%emt 0:00:08]} d2 {[%emt 0:00:28]} 49. Bxd2 {[%emt 0:00:04]} exd2 {[%emt 0:00:07]} 50. Kh6 {[%emt 0:00:05]} d1=Q {[%emt 0:00:12]} 51. a5 {[%emt 0:00:03]} Qd7 {[%emt 0:00:41]} 52. Kh7 {[%emt 0:00:11]} Kf6+ {[%emt 0:00:20]} 53. Kh6 {[%emt 0:00:04]} Bf4# {[%emt 0:00:05]} 0-1

[Event "FIDE WYCC Girls U14 2023"]
[Site "Montesilvano"]
[Date "2023.11.22"]
[Round "9.29"]
[White "Sun, Wanyao Sarah"]
[Black "Lorenz, Veronika"]
[Result "1-0"]
[ECO "C44"]
[WhiteElo "1593"]
[BlackElo "1791"]
[Annotator "NA RC"]
[PlyCount "87"]
[EventDate "2023.11.13"]
[EventType "swiss"]
[EventCountry "ITA"]
[SourceTitle "playchess.com"]
[Source "ChessBase"]
[SourceQuality "1"]
[TimeControl "40/5400+30:1800+30"]

1. e4 {[%emt 0:00:03]} e5 {[%emt 0:00:01]} 2. Nf3 {[%emt 0:00:08]} Nc6 {[%emt 0:00:00]} 3. d4 {[%emt 0:00:09]} exd4 {[%emt 0:00:01]} 4. Nxd4 {[%emt 0:00:09]} Nf6 {[%emt 0:00:02]} 5. Nc3 {[%emt 0:00:12]} Bb4 {[%emt 0:00:01]} 6. Nxc6 {[%emt 0:00:15]} bxc6 {[%emt 0:00:01]} 7. Bd3 {[%emt 0:00:02]} d5 {[%emt 0:00:09]} 8. exd5 {[%emt 0:00:06]} cxd5 {[%emt 0:00:01]} 9. O-O {[%emt 0:00:31]} O-O {[%emt 0:00:02]} 10. Bg5 {[%emt 0:00:14]} c6 {[%emt 0:00:10]} 11. Na4 {[%emt 0:00:30]} h6 {[%emt 0:10:54]} 12. Bh4 {[%emt 0:00:28]} Be7 {[%emt 0:00:49]} 13. c3 {[%emt 0:00:26]} Bg4 {[%emt 0:05:56]} 14. f3 {[%emt 0:01:39]} Be6 {[%emt 0:00:22]} 15. Bc2 {[%emt 0:01:04]} Nd7 {[%emt 0:01:55]} 16. Bxe7 {[%emt 0:02:41]} Qxe7 {[%emt 0:00:02]} 17. Re1 {[%emt 0:00:46]} Nb6 {[%emt 0:01:25]} 18. Kh1 {[%emt 0:02:53]} Nxa4 {[%emt 0:09:41]} 19. Bxa4 {[%emt 0:00:10]} Rab8 {[%emt 0:00:01]} 20. Rb1 {[%emt 0:01:04]} Qd6 {[%emt 0:02:01]} 21. Bc2 {[%emt 0:01:31]} d4 {[%emt 0:08:37]} 22. b3 {[%emt 0:01:42]} c5 {[%emt 0:00:52]} 23. cxd4 {[%emt 0:01:14]} cxd4 {[%emt 0:03:03]} 24. f4 {[%emt 0:07:07]} Qxf4 {[%emt 0:17:51]} 25. Qd3 {[%emt 0:00:53]} Rfc8 {[%emt 0:03:02]} 26. Rf1 {[%emt 0:11:15]} Qg5 {[%emt 0:07:10]} 27. Qh7+ {[%emt 0:03:12]} Kf8 {[%emt 0:00:01]} 28. Rbe1 {[%emt 0:01:07]} Ke7 {[%emt 0:02:05]} 29. Qe4 {[%emt 0:09:49]} Rb6 {[%emt 0:05:50]} 30. Bd3 {[%emt 0:02:22]} Qc5 {[%emt 0:12:39]} 31. Qf4 {[%emt 0:04:50]} Kd8 {[%emt 0:03:39]} 32. Re4 {[%emt 0:11:24]} Rd6 {[%emt 0:01:19]} 33. Rd1 {[%emt 0:03:46]} Rcc6 {[%emt 0:04:07]} 34. h3 {[%emt 0:02:53]} Kc8 {[%emt 0:02:43]} 35. Re5 {[%emt 0:01:29]} Rd5 {[%emt 0:00:49]} 36. Be4 {[%emt 0:01:43]} Rxe5 {[%emt 0:00:01]} 37. Bxc6 {[%emt 0:00:16]} d3 {[%emt 0:00:58]} 38. Rc1 {[%emt 0:01:11]} Qe3 {[%emt 0:00:26]} 39. Be4+ {[%emt 0:01:26]} Qxc1+ {[%emt 0:00:36]} 40. Qxc1+ {[%emt 0:00:00]} Kd7 {[%emt 0:00:00]} 41. Qc6+ {[%emt 0:00:44]} Ke7 {[%emt 0:00:24]} 42. Bxd3 {[%emt 0:00:19]} Bd5 {[%emt 0:00:34]} 43. Qc7+ {[%emt 0:01:06]} Kf6 {[%emt 0:01:03]} 44. Qd6+ {[%emt 0:00:21]} 1-0

[Event "FIDE WYCC Girls U14 2023"]
[Site "Montesilvano"]
[Date "2023.11.22"]
[Round "9.30"]
[White "Namala, Dhanvi"]
[Black "Andries, Alexia"]
[Result "1/2-1/2"]
[ECO "B62"]
[WhiteElo "1388"]
[BlackElo "1750"]
[Annotator "NA RC"]
[PlyCount "98"]
[EventDate "2023.11.13"]
[EventType "swiss"]
[EventCountry "ITA"]
[SourceTitle "playchess.com"]
[Source "ChessBase"]
[SourceQuality "1"]
[TimeControl "40/5400+30:1800+30"]

1. e4 {[%emt 0:00:03]} c5 {[%emt 0:00:04]} 2. Nf3 {[%emt 0:00:13]} Nc6 {[%emt 0:00:04]} 3. d4 {[%emt 0:00:07]} cxd4 {[%emt 0:00:04]} 4. Nxd4 {[%emt 0:00:06]} Nf6 {[%emt 0:00:04]} 5. Nc3 {[%emt 0:00:22]} d6 {[%emt 0:00:05]} 6. Bg5 {[%emt 0:00:16]} e6 {[%emt 0:00:11]} 7. Qd3 {[%emt 0:00:31]} Be7 {[%emt 0:00:16]} 8. Nf3 {[%emt 0:01:38]} a6 {[%emt 0:03:05]} 9. O-O-O {[%emt 0:02:01]} h6 {[%emt 0:18:27]} 10. Bxf6 {[%emt 0:01:20]} gxf6 {[%emt 0:00:09]} 11. Kb1 {[%emt 0:03:31]} b5 {[%emt 0:04:45]} 12. h3 {[%emt 0:04:18]} Bd7 {[%emt 0:05:28]} 13. Ne2 {[%emt 0:06:19]} Na5 {[%emt 0:02:18]} 14. Nfd4 {[%emt 0:04:00]} Nc4 {[%emt 0:06:15]} 15. f4 {[%emt 0:05:29]} Nb6 {[%emt 0:05:48]} 16. Qg3 {[%emt 0:07:46]} Qc7 {[%emt 0:04:05]} 17. Qg7 {[%emt 0:05:08]} Rf8 {[%emt 0:00:10]} 18. Qxh6 {[%emt 0:02:46]} b4 {[%emt 0:00:06]} 19. f5 {[%emt 0:03:29]} e5 {[%emt 0:00:11]} 20. Nb3 {[%emt 0:01:39]} a5 {[%emt 0:00:23]} 21. Qc1 {[%emt 0:07:59]} a4 {[%emt 0:01:32]} 22. Nd2 {[%emt 0:00:30]} Rc8 {[%emt 0:01:38]} 23. h4 {[%emt 0:04:40]} d5 {[%emt 0:00:12]} 24. g4 {[%emt 0:03:15]} dxe4 {[%emt 0:00:36]} 25. Nxe4 {[%emt 0:02:13]} Nc4 {[%emt 0:00:21]} 26. Rh3 {[%emt 0:02:28]} Rb8 {[%emt 0:03:45]} 27. Ng1 {[%emt 0:06:59]} Na5 {[%emt 0:08:44]} 28. Rhd3 {[%emt 0:06:12]} Bb5 {[%emt 0:01:07]} 29. R3d2 {[%emt 0:00:58]} Bxf1 {[%emt 0:00:49]} 30. Rxf1 {[%emt 0:00:38]} Qc6 {[%emt 0:00:23]} 31. Re1 {[%emt 0:02:48]} Rg8 {[%emt 0:01:54]} 32. Nf2 {[%emt 0:01:04]} Nc4 {[%emt 0:00:15]} 33. Rd3 {[%emt 0:01:17]} Bc5 {[%emt 0:01:20]} 34. Ngh3 {[%emt 0:01:23]} Qb6 {[%emt 0:02:36]} 35. Re2 {[%emt 0:02:55]} Bd4 {[%emt 0:02:34]} 36. Ne4 {[%emt 0:03:54]} Rxg4 {[%emt 0:06:58]} 37. Rxd4 {[%emt 0:01:27]} Qxd4 {[%emt 0:03:30]} 38. Nxf6+ {[%emt 0:00:49]} Ke7 {[%emt 0:00:06]} 39. Nxg4 {[%emt 0:00:42]} Qxg4 {[%emt 0:00:26]} 40. Qg5+ {[%emt 0:00:00]} Qxg5 {[%emt 0:00:00]} 41. hxg5 {[%emt 0:05:25]} Rh8 {[%emt 0:00:21]} 42. Rh2 {[%emt 0:01:09]} Ne3 {[%emt 0:00:51]} 43. f6+ {[%emt 0:00:53]} Kd6 {[%emt 0:00:13]} 44. Rh1 {[%emt 0:01:29]} Rc8 {[%emt 0:23:49]} 45. Rh2 {[%emt 0:05:37]} Ke6 {[%emt 0:01:32]} 46. Re2 {[%emt 0:01:48]} Nd5 {[%emt 0:01:06]} 47. Kc1 {[%emt 0:02:36]} Kf5 {[%emt 0:01:22]} 48. Nf2 {[%emt 0:01:23]} Rc4 {[%emt 0:02:42]} 49. Nh3 {[%emt 0:07:01]} Rh4 {[%emt 0:05:23]} 1/2-1/2

[Event "FIDE WYCC Girls U14 2023"]
[Site "Montesilvano"]
[Date "2023.11.22"]
[Round "9.31"]
[White "Caku, Kler"]
[Black "Valente, Sofia"]
[Result "1/2-1/2"]
[ECO "B30"]
[WhiteElo "1740"]
[BlackElo "1604"]
[Annotator "NA RC"]
[PlyCount "80"]
[EventDate "2023.11.13"]
[EventType "swiss"]
[EventCountry "ITA"]
[SourceTitle "playchess.com"]
[Source "ChessBase"]
[SourceQuality "1"]
[TimeControl "40/5400+30:1800+30"]

1. e4 {[%emt 0:00:03]} c5 {[%emt 0:00:15]} 2. Nf3 {[%emt 0:00:05]} Nc6 {[%emt 0:00:26]} 3. Bb5 {[%emt 0:00:05]} Nf6 {[%emt 0:01:14]} 4. Bxc6 {[%emt 0:01:07]} bxc6 {[%emt 0:00:51]} 5. Qe2 {[%emt 0:01:21]} g6 {[%emt 0:01:32]} 6. O-O {[%emt 0:00:24]} Bg7 {[%emt 0:00:42]} 7. d3 {[%emt 0:01:07]} O-O {[%emt 0:01:04]} 8. Nbd2 {[%emt 0:02:04]} Qc7 {[%emt 0:04:57]} 9. Nb3 {[%emt 0:03:52]} d6 {[%emt 0:02:35]} 10. h3 {[%emt 0:01:29]} Nd7 {[%emt 0:03:30]} 11. Nh2 {[%emt 0:02:34]} Ba6 {[%emt 0:08:28]} 12. f4 {[%emt 0:07:01]} d5 {[%emt 0:02:35]} 13. Nd2 {[%emt 0:06:47]} c4 {[%emt 0:05:28]} 14. dxc4 {[%emt 0:08:09]} dxc4 {[%emt 0:00:52]} 15. c3 {[%emt 0:02:19]} Rad8 {[%emt 0:08:47]} 16. e5 {[%emt 0:09:55]} Qb6+ {[%emt 0:02:55]} 17. Kh1 {[%emt 0:00:59]} Nc5 {[%emt 0:03:03]} 18. Nxc4 {[%emt 0:07:05]} Bxc4 {[%emt 0:02:09]} 19. Qxc4 {[%emt 0:00:11]} Nd3 {[%emt 0:01:34]} 20. Nf3 {[%emt 0:06:33]} Nxc1 {[%emt 0:10:05]} 21. Raxc1 {[%emt 0:01:53]} Qxb2 {[%emt 0:01:09]} 22. Rb1 {[%emt 0:01:13]} Qa3 {[%emt 0:03:34]} 23. Rb7 {[%emt 0:04:12]} Rb8 {[%emt 0:04:00]} 24. Rxb8 {[%emt 0:10:40]} Rxb8 {[%emt 0:00:11]} 25. Ng5 {[%emt 0:00:41]} e6 {[%emt 0:01:53]} 26. Rd1 {[%emt 0:04:52]} h6 {[%emt 0:03:41]} 27. Ne4 {[%emt 0:04:10]} Bf8 {[%emt 0:01:18]} 28. Nf6+ {[%emt 0:00:57]} Kg7 {[%emt 0:00:36]} 29. Qxc6 {[%emt 0:04:39]} Qxa2 {[%emt 0:03:31]} 30. Rd7 {[%emt 0:01:19]} Qf2 {[%emt 0:04:13]} 31. Rd1 {[%emt 0:03:28]} Qc2 {[%emt 0:04:20]} 32. Rg1 {[%emt 0:01:59]} Rb1 {[%emt 0:02:53]} 33. Rxb1 {[%emt 0:00:42]} Qxb1+ {[%emt 0:00:09]} 34. Kh2 {[%emt 0:00:05]} Qc1 {[%emt 0:00:35]} 35. Qc4 {[%emt 0:01:21]} h5 {[%emt 0:01:08]} 36. f5 {[%emt 0:00:51]} Qe1 {[%emt 0:02:46]} 37. Qd4 {[%emt 0:01:17]} h4 {[%emt 0:01:27]} 38. Ne8+ {[%emt 0:01:28]} Kh6 {[%emt 0:02:27]} 39. Qf4+ {[%emt 0:00:30]} g5 {[%emt 0:00:29]} 40. Qd4 {[%emt 0:00:00]} Qg3+ 1/2-1/2

[Event "FIDE WYCC Girls U14 2023"]
[Site "Montesilvano"]
[Date "2023.11.22"]
[Round "9.32"]
[White "Saparya Ghosh"]
[Black "Cutiyog, Jirah Floravie"]
[Result "1-0"]
[ECO "E20"]
[WhiteElo "1659"]
[BlackElo "1305"]
[Annotator "NA RC"]
[PlyCount "113"]
[EventDate "2023.11.13"]
[EventType "swiss"]
[EventCountry "ITA"]
[SourceTitle "playchess.com"]
[Source "ChessBase"]
[SourceQuality "1"]
[TimeControl "40/5400+30:1800+30"]

1. d4 {[%emt 0:00:09]} Nf6 {[%emt 0:00:07]} 2. c4 {[%emt 0:00:04]} e6 {[%emt 0:00:06]} 3. Nc3 {[%emt 0:00:10]} Bb4 {[%emt 0:00:08]} 4. Bd2 {[%emt 0:00:07]} d5 {[%emt 0:00:18]} 5. e3 {[%emt 0:00:08]} Bxc3 {[%emt 0:00:16]} 6. Bxc3 {[%emt 0:00:27]} Ne4 {[%emt 0:00:11]} 7. Rc1 {[%emt 0:01:08]} O-O {[%emt 0:00:58]} 8. Bd3 {[%emt 0:00:40]} f5 {[%emt 0:02:03]} 9. Ne2 {[%emt 0:11:46]} Nd7 {[%emt 0:07:09]} 10. Nf4 {[%emt 0:12:43]} Ndf6 {[%emt 0:07:13]} 11. Bb4 {[%emt 0:01:40]} Re8 {[%emt 0:03:59]} 12. O-O {[%emt 0:00:52]} Bd7 {[%emt 0:04:21]} 13. Qc2 {[%emt 0:11:55]} Bc6 {[%emt 0:09:01]} 14. Be1 {[%emt 0:09:39]} dxc4 {[%emt 0:11:52]} 15. Bxc4 {[%emt 0:01:05]} Nd5 {[%emt 0:00:22]} 16. Nd3 {[%emt 0:11:30]} Nb6 {[%emt 0:11:37]} 17. Ne5 {[%emt 0:12:33]} Ba4 {[%emt 0:10:01]} 18. b3 {[%emt 0:01:55]} Nxc4 {[%emt 0:07:04]} 19. Qxc4 {[%emt 0:01:03]} Bd7 {[%emt 0:00:23]} 20. Nxd7 {[%emt 0:01:57]} Qxd7 {[%emt 0:00:18]} 21. Qxc7 {[%emt 0:00:23]} Qb5 {[%emt 0:00:41]} 22. f3 {[%emt 0:01:04]} Nf6 {[%emt 0:00:39]} 23. Qc4 {[%emt 0:12:56]} Qd5 {[%emt 0:03:56]} 24. Bh4 {[%emt 0:02:07]} Nd7 {[%emt 0:01:51]} 25. Qxd5 {[%emt 0:01:04]} exd5 {[%emt 0:00:14]} 26. Rc7 {[%emt 0:00:05]} Nb6 {[%emt 0:00:25]} 27. Rxb7 {[%emt 0:00:57]} Rxe3 {[%emt 0:00:37]} 28. Bg3 {[%emt 0:00:06]} Re6 {[%emt 0:02:18]} 29. Be5 {[%emt 0:00:18]} Rg6 {[%emt 0:02:37]} 30. a4 {[%emt 0:00:43]} Nc8 {[%emt 0:02:04]} 31. Rc1 {[%emt 0:00:14]} Nd6 {[%emt 0:00:32]} 32. Rd7 {[%emt 0:02:21]} Nf7 {[%emt 0:00:36]} 33. Rxd5 {[%emt 0:00:46]} Nxe5 {[%emt 0:00:53]} 34. dxe5 {[%emt 0:00:04]} Rb8 {[%emt 0:00:43]} 35. Rc7 {[%emt 0:01:22]} Rgb6 {[%emt 0:00:42]} 36. Rdd7 {[%emt 0:00:12]} Rg6 {[%emt 0:01:05]} 37. Rxa7 {[%emt 0:00:07]} h6 {[%emt 0:00:04]} 38. Rab7 {[%emt 0:00:25]} Rc8 {[%emt 0:00:09]} 39. Rbc7 {[%emt 0:00:26]} Rb8 {[%emt 0:00:13]} 40. Rc3 {[%emt 0:00:00]} Rgb6 {[%emt 0:00:00]} 41. Rdd3 {[%emt 0:03:15]} Kf7 {[%emt 0:01:01]} 42. Kf2 {[%emt 0:00:21]} Rb4 {[%emt 0:00:48]} 43. g3 {[%emt 0:03:25]} g5 {[%emt 0:02:46]} 44. Ke2 {[%emt 0:12:03]} Ke6 {[%emt 0:00:39]} 45. Kd2 {[%emt 0:00:17]} Kxe5 {[%emt 0:00:40]} 46. Rc5+ {[%emt 0:00:09]} Ke6 {[%emt 0:00:21]} 47. Kc2 {[%emt 0:00:26]} R8b6 {[%emt 0:00:17]} 48. a5 {[%emt 0:00:18]} R4b5 {[%emt 0:01:30]} 49. axb6 {[%emt 0:02:33]} Rxc5+ {[%emt 0:00:06]} 50. Rc3 {[%emt 0:00:04]} Rb5 {[%emt 0:00:24]} 51. Rc6+ {[%emt 0:00:10]} Kd5 {[%emt 0:00:03]} 52. Rxh6 {[%emt 0:00:12]} Kd4 {[%emt 0:00:10]} 53. Rd6+ {[%emt 0:03:45]} Ke3 {[%emt 0:00:54]} 54. Kc3 {[%emt 0:00:11]} f4 {[%emt 0:00:35]} 55. Kc4 {[%emt 0:01:34]} Rf5 {[%emt 0:00:15]} 56. b7 {[%emt 0:03:06]} Rf8 {[%emt 0:00:09]} 57. Kc5 {[%emt 0:00:28]} 1-0

[Event "FIDE WYCC Girls U14 2023"]
[Site "Montesilvano"]
[Date "2023.11.22"]
[Round "9.33"]
[White "Michalska, Lena"]
[Black "Zagorac, Lara"]
[Result "1/2-1/2"]
[ECO "A38"]
[WhiteElo "1640"]
[BlackElo "1866"]
[Annotator "NA RC"]
[PlyCount "61"]
[EventDate "2023.11.13"]
[EventType "swiss"]
[EventCountry "ITA"]
[SourceTitle "playchess.com"]
[Source "ChessBase"]
[SourceQuality "1"]
[TimeControl "40/5400+30:1800+30"]

1. Nf3 {[%emt 0:00:01]} c5 {[%emt 0:00:15]} 2. c4 {[%emt 0:00:20]} Nf6 {[%emt 0:00:11]} 3. g3 {[%emt 0:00:39]} g6 {[%emt 0:00:10]} 4. Bg2 {[%emt 0:00:08]} Bg7 {[%emt 0:00:07]} 5. O-O {[%emt 0:00:24]} O-O {[%emt 0:00:15]} 6. d3 {[%emt 0:06:34]} Nc6 {[%emt 0:04:39]} 7. Nc3 {[%emt 0:14:02]} d6 {[%emt 0:01:16]} 8. Bg5 {[%emt 0:02:47]} h6 {[%emt 0:07:27]} 9. Bd2 {[%emt 0:01:55]} e5 {[%emt 0:03:33]} 10. Qc1 {[%emt 0:03:41]} Kh7 {[%emt 0:04:40]} 11. a3 {[%emt 0:00:21]} Nd4 {[%emt 0:09:38]} 12. Nxd4 {[%emt 0:01:08]} exd4 {[%emt 0:00:29]} 13. Nd5 {[%emt 0:00:36]} Re8 {[%emt 0:02:21]} 14. Re1 {[%emt 0:00:52]} Rb8 {[%emt 0:03:55]} 15. b4 {[%emt 0:05:58]} b6 {[%emt 0:08:05]} 16. a4 {[%emt 0:07:52]} Bb7 {[%emt 0:04:51]} 17. Nxf6+ {[%emt 0:00:48]} Qxf6 {[%emt 0:00:20]} 18. a5 {[%emt 0:02:43]} Bxg2 {[%emt 0:02:24]} 19. Kxg2 {[%emt 0:00:03]} Re6 {[%emt 0:10:43]} 20. axb6 {[%emt 0:01:59]} axb6 {[%emt 0:02:04]} 21. Ra6 {[%emt 0:01:52]} Qe7 {[%emt 0:04:45]} 22. Qa3 {[%emt 0:11:52]} Rxe2 {[%emt 0:05:31]} 23. Rxe2 {[%emt 0:06:14]} Qxe2 {[%emt 0:00:33]} 24. Bf4 {[%emt 0:03:31]} Be5 {[%emt 0:05:24]} 25. Ra7 {[%emt 0:01:13]} Rf8 {[%emt 0:05:16]} 26. Re7 {[%emt 0:01:51]} cxb4 {[%emt 0:05:34]} 27. Qxb4 {[%emt 0:01:08]} Kg7 {[%emt 0:06:01]} 28. Qxb6 {[%emt 0:13:34]} Qxd3 {[%emt 0:01:40]} 29. Bxe5+ {[%emt 0:00:05]} dxe5 {[%emt 0:00:16]} 30. Rxe5 {[%emt 0:00:04]} Qc3 {[%emt 0:01:24]} 31. Rd5 {[%emt 0:01:28]} 1/2-1/2